fUSD/lending_fUSD_20260506
["ID","MTS","AMOUNT","RATE_DAILY","PERIOD"]
[421693484,1778044248000,-891.9241332,0.00038334,2]
[421693495,1778044248000,-474.98520692,0.00038334,2]
[421693498,1778044248000,-852.7601399,0.00038334,2]
[421693501,1778044248000,-300.0,0.00038334,2]
[421693496,1778044248000,-300.0,0.00038334,2]
[421693493,1778044248000,-300.0,0.00038334,2]
[421693491,1778044248000,-300.06118393,0.00038334,2]
[421693494,1778044248000,-300.0,0.00038334,2]
[421693492,1778044248000,-300.0,0.00038334,2]
[421693497,1778044248000,-300.0,0.00038334,2]
[421693564,1778044249000,-309.13065885,0.00038334,2]
[421693565,1778044249000,-724.83131769,0.00038334,2]
[421693567,1778044249000,-301.2859328,0.00038334,2]
[421693563,1778044249000,-300.0,0.00038334,2]
[421693558,1778044249000,-526.86051061,0.00038334,2]
[421693561,1778044249000,-1065.13491717,0.00038334,2]
[421693562,1778044249000,-891.9241332,0.00038334,2]
[421693556,1778044249000,-300.0,0.00038334,2]
[421693568,1778044249000,-300.0,0.00038334,2]
[421693570,1778044249000,-300.06118393,0.00038334,2]
[421693569,1778044249000,-300.0,0.00038334,2]
[421693573,1778044249000,-300.0,0.00038334,2]
[421693572,1778044249000,-300.0,0.00038334,2]
[421693571,1778044249000,-300.0,0.00038334,2]
[421693582,1778044249000,-300.0,0.00038334,2]
[421693579,1778044249000,-1793.38851355,0.00038334,2]
[421693577,1778044249000,-852.7601399,0.00038334,2]
[421693576,1778044249000,-300.0,0.00038334,2]
[421693580,1778044249000,-300.0,0.00038334,2]
[421693578,1778044249000,-300.0,0.00038334,2]
[421693574,1778044249000,-300.0,0.00038334,2]
[421693583,1778044249000,-300.0,0.00038334,2]
[421693554,1778044249000,-603.45144378,0.00038334,2]
[421693566,1778044249000,-300.0,0.00038334,2]
[421693555,1778044249000,-300.0,0.00038334,2]
[421693543,1778044249000,-300.0,0.00038334,2]
[421693557,1778044249000,-300.0,0.00038334,2]
[421693535,1778044249000,-300.0,0.00038334,2]
[421693531,1778044249000,-300.0,0.00038334,2]
[421693532,1778044249000,-300.0,0.00038334,2]
[421693533,1778044249000,-300.0,0.00038334,2]
[421693534,1778044249000,-1092.83356842,0.00038334,2]
[421693538,1778044249000,-300.0,0.00038334,2]
[421693536,1778044249000,-300.0,0.00038334,2]
[421693540,1778044249000,-300.0,0.00038334,2]
[421693539,1778044249000,-300.0,0.00038334,2]
[421693542,1778044249000,-300.0,0.00038334,2]
[421693541,1778044249000,-300.0,0.00038334,2]
[421693559,1778044249000,-476.87909536,0.00038334,2]
[421693545,1778044249000,-300.0,0.00038334,2]
[421693544,1778044249000,-300.0,0.00038334,2]
[421693546,1778044249000,-300.0,0.00038334,2]
[421693537,1778044249000,-300.0,0.00038334,2]
[421693548,1778044249000,-300.0,0.00038334,2]
[421693547,1778044249000,-300.000001,0.00038334,2]
[421693549,1778044249000,-491.85958444,0.00038334,2]
[421693551,1778044249000,-300.0,0.00038334,2]
[421693550,1778044249000,-300.0,0.00038334,2]
[421693560,1778044249000,-300.0,0.00038334,2]
[421693552,1778044249000,-300.0,0.00038334,2]
[421693553,1778044249000,-300.0,0.00038334,2]
[421693581,1778044249000,-343.40295571,0.00038334,2]
[421693597,1778044249000,-481.18706949,0.00038334,2]
[421693575,1778044249000,-474.98520692,0.00038334,2]
[421693596,1778044249000,-300.0,0.00038334,2]
[421693617,1778044249000,-500.0,0.00038335,120]
[421693615,1778044249000,-331.5694761,0.00038335,120]
[421693621,1778044249000,-164.23,0.00038337,2]
[421693616,1778044249000,-283.6996602,0.00038335,120]
[421693620,1778044249000,-164.23,0.00038337,2]
[421693619,1778044249000,-271.5036769,0.00038335,120]
[421693618,1778044249000,-701.6405734,0.00038335,120]
[421693622,1778044249000,-164.23,0.00038337,2]
[421693623,1778044249000,-164.23,0.00038337,2]
[421693625,1778044249000,-164.23,0.00038337,2]
[421693635,1778044249000,-250.0,0.00038343,7]
[421693624,1778044249000,-164.23,0.00038337,2]
[421693627,1778044249000,-164.27,0.00038339,2]
[421693626,1778044249000,-164.23,0.00038337,2]
[421693628,1778044249000,-164.23,0.00038339,2]
[421693629,1778044249000,-164.23,0.00038339,2]
[421693585,1778044249000,-309.07064608,0.00038334,2]
[421693633,1778044249000,-164.23,0.00038339,2]
[421693634,1778044249000,-250.0,0.00038343,7]
[421693631,1778044249000,-164.23,0.00038339,2]
[421693632,1778044249000,-164.23,0.00038339,2]
[421693637,1778044249000,-2224.8957,0.00038351,2]
[421693636,1778044249000,-181.5509,0.00038351,2]
[421693638,1778044249000,-166.14999999,0.00038356,30]
[421693639,1778044249000,-185.0,0.00038356,2]
[421693613,1778044249000,-186.7459471,0.00038335,120]
[421693614,1778044249000,-210.1366791,0.00038335,120]
[421693630,1778044249000,-164.23,0.00038339,2]
[421693611,1778044249000,-164.23,0.00038335,2]
[421693609,1778044249000,-164.23,0.00038335,2]
[421693595,1778044249000,-463.08064867,0.00038334,2]
[421693586,1778044249000,-300.0,0.00038334,2]
[421693588,1778044249000,-300.0,0.00038334,2]
[421693584,1778044249000,-1145.24599896,0.00038334,2]
[421693591,1778044249000,-300.0,0.00038334,2]
[421693589,1778044249000,-300.0,0.00038334,2]
[421693593,1778044249000,-300.0,0.00038334,2]
[421693590,1778044249000,-300.0,0.00038334,2]
[421693592,1778044249000,-310.3725982,0.00038334,2]
[421693594,1778044249000,-300.0,0.00038334,2]
[421693599,1778044249000,-451.13853711,0.00038334,2]
[421693587,1778044249000,-862.96230178,0.00038334,2]
[421693600,1778044249000,-300.0,0.00038334,2]
[421693598,1778044249000,-300.0,0.00038334,2]
[421693610,1778044249000,-164.23,0.00038335,2]
[421693608,1778044249000,-164.23,0.00038335,2]
[421693612,1778044249000,-164.23,0.00038335,2]
[421693606,1778044249000,-483.27319916,0.00038334,2]
[421693607,1778044249000,-164.23,0.00038335,2]
[421693604,1778044249000,-300.0,0.00038334,2]
[421693603,1778044249000,-300.0,0.00038334,2]
[421693605,1778044249000,-300.0,0.00038334,2]
[421693602,1778044249000,-300.0,0.00038334,2]
[421693601,1778044249000,-300.0,0.00038334,2]
[421693662,1778044250000,-400.0,0.00038688,2]
[421693663,1778044250000,-400.0,0.00038688,2]
[421693664,1778044250000,-400.0,0.00038688,2]
[421693666,1778044250000,-156.48951136,0.00038719,120]
[421693665,1778044250000,-379.0,0.00038688,2]
[421693669,1778044250000,-2224.8957,0.00038899,2]
[421693661,1778044250000,-400.0,0.00038688,2]
[421693667,1778044250000,-500.0,0.00038811,120]
[421693673,1778044250000,-152.0,0.00039008,14]
[421693671,1778044250000,-500.16742932,0.00038904,5]
[421693670,1778044250000,-58850.58,0.000389,7]
[421693672,1778044250000,-162.0,0.00039,120]
[421693674,1778044250000,-2132.37882144,0.00039018,2]
[421693675,1778044250000,-4000.0,0.00039096,60]
[421693660,1778044250000,-400.0,0.00038688,2]
[421693676,1778044250000,-327.95,0.000391,30]
[421693668,1778044250000,-151.0,0.00038897,14]
[421693657,1778044250000,-400.0,0.00038688,2]
[421693646,1778044250000,-350.0,0.00038356,2]
[421693653,1778044250000,-253.6098031,0.00038614,2]
[421693678,1778044250000,-2000.0,0.000393,7]
[421693643,1778044250000,-300.0,0.00038356,2]
[421693647,1778044250000,-350.0,0.00038356,2]
[421693641,1778044250000,-241.0,0.00038356,2]
[421693644,1778044250000,-300.0,0.00038356,2]
[421693645,1778044250000,-239.0,0.00038356,2]
[421693640,1778044250000,-150.0,0.00038356,2]
[421693642,1778044250000,-278.0,0.00038356,2]
[421693659,1778044250000,-400.0,0.00038688,2]
[421693649,1778044250000,-399.75850779,0.00038437,2]
[421693648,1778044250000,-279.0,0.00038356,2]
[421693652,1778044250000,-150.0,0.00038614,2]
[421693655,1778044250000,-192.0,0.00038663,90]
[421693650,1778044250000,-150.0,0.000385,120]
[421693651,1778044250000,-504.0,0.00038539,14]
[421693654,1778044250000,-2224.8957,0.00038625,2]
[421693656,1778044250000,-400.0,0.00038688,2]
[421693658,1778044250000,-400.0,0.00038688,2]
[421693677,1778044250000,-2224.8957,0.00039173,2]
[421693719,1778044250000,-1960.97387513,0.00039726,15]
[421693681,1778044250000,-2859.15288275,0.000394,120]
[421693705,1778044250000,-1960.97387513,0.00039726,15]
[421693701,1778044250000,-1960.97387513,0.00039726,15]
[421693703,1778044250000,-1960.97387513,0.00039726,15]
[421693702,1778044250000,-1960.97387513,0.00039726,15]
[421693707,1778044250000,-1960.97387513,0.00039726,15]
[421693706,1778044250000,-1960.97387513,0.00039726,15]
[421693709,1778044250000,-1960.97387513,0.00039726,15]
[421693708,1778044250000,-1960.97387513,0.00039726,15]
[421693710,1778044250000,-1960.97387513,0.00039726,15]
[421693711,1778044250000,-1960.97387513,0.00039726,15]
[421693713,1778044250000,-1960.97387513,0.00039726,15]
[421693714,1778044250000,-1960.97387513,0.00039726,15]
[421693715,1778044250000,-1960.97387513,0.00039726,15]
[421693716,1778044250000,-1960.97387513,0.00039726,15]
[421693718,1778044250000,-1960.97387513,0.00039726,15]
[421693717,1778044250000,-1960.97387513,0.00039726,15]
[421693679,1778044250000,-2023.0,0.000393,7]
[421693704,1778044250000,-1960.97387513,0.00039726,15]
[421693698,1778044250000,-1960.97387513,0.00039726,15]
[421693712,1778044250000,-1960.97387513,0.00039726,15]
[421693699,1778044250000,-1960.97387513,0.00039726,15]
[421693683,1778044250000,-727.01,0.00039561,120]
[421693700,1778044250000,-1960.97387513,0.00039726,15]
[421693682,1778044250000,-2224.8957,0.00039447,2]
[421693680,1778044250000,-3350.49651741,0.000394,120]
[421693685,1778044250000,-150.0,0.00039579,2]
[421693686,1778044250000,-400.0,0.00039649,2]
[421693694,1778044250000,-400.0,0.00039649,2]
[421693693,1778044250000,-400.0,0.00039649,2]
[421693684,1778044250000,-504.0,0.00039575,15]
[421693695,1778044250000,-280.0,0.00039649,2]
[421693687,1778044250000,-400.0,0.00039649,2]
[421693697,1778044250000,-1960.97387513,0.00039726,15]
[421693696,1778044250000,-2224.8957,0.00039721,2]
[421693692,1778044250000,-400.0,0.00039649,2]
[421693689,1778044250000,-400.0,0.00039649,2]
[421693690,1778044250000,-400.0,0.00039649,2]
[421693688,1778044250000,-400.0,0.00039649,2]
[421693691,1778044250000,-400.0,0.00039649,2]
[421693758,1778044251000,-1960.97387513,0.00039726,15]
[421693759,1778044251000,-1960.97387513,0.00039726,15]
[421693761,1778044251000,-1900.63621745,0.00039726,15]
[421693762,1778044251000,-1900.63621745,0.00039726,15]
[421693727,1778044251000,-1960.97387513,0.00039726,15]
[421693755,1778044251000,-1960.97387513,0.00039726,15]
[421693756,1778044251000,-1960.97387513,0.00039726,15]
[421693752,1778044251000,-1960.97387513,0.00039726,15]
[421693760,1778044251000,-1900.63621745,0.00039726,15]
[421693751,1778044251000,-1960.97387513,0.00039726,15]
[421693753,1778044251000,-1960.97387513,0.00039726,15]
[421693757,1778044251000,-1960.97387513,0.00039726,15]
[421693766,1778044251000,-1900.63621745,0.00039726,15]
[421693763,1778044251000,-1900.63621745,0.00039726,15]
[421693765,1778044251000,-1900.63621745,0.00039726,15]
[421693772,1778044251000,-1900.63621745,0.00039726,15]
[421693768,1778044251000,-1900.63621745,0.00039726,15]
[421693767,1778044251000,-1900.63621745,0.00039726,15]
[421693771,1778044251000,-1900.63621745,0.00039726,15]
[421693770,1778044251000,-1900.63621745,0.00039726,15]
[421693769,1778044251000,-1900.63621745,0.00039726,15]
[421693773,1778044251000,-1900.63621745,0.00039726,15]
[421693775,1778044251000,-1900.63621745,0.00039726,15]
[421693748,1778044251000,-1960.97387513,0.00039726,15]
[421693764,1778044251000,-1900.63621745,0.00039726,15]
[421693745,1778044251000,-1960.97387513,0.00039726,15]
[421693729,1778044251000,-1960.97387513,0.00039726,15]
[421693749,1778044251000,-1960.97387513,0.00039726,15]
[421693726,1778044251000,-1960.97387513,0.00039726,15]
[421693720,1778044251000,-1960.97387513,0.00039726,15]
[421693721,1778044251000,-1960.97387513,0.00039726,15]
[421693723,1778044251000,-1960.97387513,0.00039726,15]
[421693724,1778044251000,-1960.97387513,0.00039726,15]
[421693725,1778044251000,-1960.97387513,0.00039726,15]
[421693722,1778044251000,-1960.97387513,0.00039726,15]
[421693728,1778044251000,-1960.97387513,0.00039726,15]
[421693730,1778044251000,-1960.97387513,0.00039726,15]
[421693732,1778044251000,-1960.97387513,0.00039726,15]
[421693731,1778044251000,-1960.97387513,0.00039726,15]
[421693739,1778044251000,-1960.97387513,0.00039726,15]
[421693740,1778044251000,-1960.97387513,0.00039726,15]
[421693738,1778044251000,-1960.97387513,0.00039726,15]
[421693733,1778044251000,-1960.97387513,0.00039726,15]
[421693734,1778044251000,-1960.97387513,0.00039726,15]
[421693736,1778044251000,-1960.97387513,0.00039726,15]
[421693737,1778044251000,-1960.97387513,0.00039726,15]
[421693774,1778044251000,-1900.63621745,0.00039726,15]
[421693742,1778044251000,-1960.97387513,0.00039726,15]
[421693741,1778044251000,-1960.97387513,0.00039726,15]
[421693743,1778044251000,-1960.97387513,0.00039726,15]
[421693744,1778044251000,-1960.97387513,0.00039726,15]
[421693747,1778044251000,-1960.97387513,0.00039726,15]
[421693746,1778044251000,-1960.97387513,0.00039726,15]
[421693750,1778044251000,-1960.97387513,0.00039726,15]
[421693783,1778044251000,-1900.63621745,0.00039726,15]
[421693735,1778044251000,-1960.97387513,0.00039726,15]
[421693779,1778044251000,-1900.63621745,0.00039726,15]
[421693818,1778044251000,-2859.15288275,0.000405,120]
[421693815,1778044251000,-361.72528501,0.00040464,14]
[421693807,1778044251000,-406.24,0.0004029,60]
[421693816,1778044251000,-554.35,0.00040464,120]
[421693809,1778044251000,-22308.51,0.0004029,60]
[421693808,1778044251000,-2915.26,0.0004029,60]
[421693810,1778044251000,-1535.82484793,0.000403,7]
[421693811,1778044251000,-2050.34227714,0.000403,30]
[421693812,1778044251000,-2050.34227714,0.000403,30]
[421693813,1778044251000,-2050.34227714,0.000403,30]
[421693819,1778044251000,-1247.3476,0.00040515,4]
[421693821,1778044251000,-250.0,0.00040548,2]
[421693817,1778044251000,-3350.49651741,0.000405,120]
[421693820,1778044251000,-1099.5765,0.00040515,4]
[421693823,1778044251000,-250.0,0.00040548,2]
[421693827,1778044251000,-500.0,0.00040548,60]
[421693828,1778044251000,-150.0,0.00040548,60]
[421693825,1778044251000,-500.0,0.00040548,60]
[421693830,1778044251000,-150.0,0.00040548,60]
[421693824,1778044251000,-260.05273032,0.00040548,2]
[421693829,1778044251000,-150.0,0.00040548,60]
[421693826,1778044251000,-500.0,0.00040548,60]
[421693831,1778044251000,-150.0,0.00040548,60]
[421693832,1778044251000,-500.0,0.00040548,60]
[421693833,1778044251000,-218.61009254,0.00040548,60]
[421693777,1778044251000,-1900.63621745,0.00039726,15]
[421693822,1778044251000,-250.0,0.00040548,2]
[421693814,1778044251000,-554.35,0.00040364,120]
[421693754,1778044251000,-1960.97387513,0.00039726,15]
[421693801,1778044251000,-150.0,0.00040223,2]
[421693778,1778044251000,-1900.63621745,0.00039726,15]
[421693803,1778044251000,-554.35,0.00040264,120]
[421693776,1778044251000,-1900.63621745,0.00039726,15]
[421693780,1778044251000,-1900.63621745,0.00039726,15]
[421693781,1778044251000,-1900.63621745,0.00039726,15]
[421693782,1778044251000,-1900.63621745,0.00039726,15]
[421693785,1778044251000,-1900.63621745,0.00039726,15]
[421693795,1778044251000,-153.0,0.0004,120]
[421693789,1778044251000,-152.0,0.00039886,15]
[421693788,1778044251000,-250.17,0.00039864,30]
[421693784,1778044251000,-1900.63621745,0.00039726,15]
[421693786,1778044251000,-250.0,0.00039753,65]
[421693792,1778044251000,-2224.8957,0.00039995,2]
[421693787,1778044251000,-554.35,0.00039864,120]
[421693794,1778044251000,-162.55277151,0.0004,3]
[421693791,1778044251000,-163.0,0.00039967,11]
[421693805,1778044251000,-2856.51,0.0004029,60]
[421693806,1778044251000,-350.75,0.0004029,60]
[421693804,1778044251000,-2224.8957,0.00040269,2]
[421693802,1778044251000,-408.0,0.00040235,10]
[421693800,1778044251000,-58850.58,0.000402,7]
[421693799,1778044251000,-554.35,0.00040164,120]
[421693797,1778044251000,-7477.9912826,0.00040025,2]
[421693796,1778044251000,-2000.0,0.0004,120]
[421693790,1778044251000,-554.35,0.00039964,120]
[421693793,1778044251000,-153.0,0.0004,120]
[421693798,1778044251000,-554.35,0.00040064,120]
[421693877,1778044252000,-500.0,0.00040548,2]
[421693874,1778044252000,-203.08154012,0.00040548,2]
[421693875,1778044252000,-216.99161194,0.00040548,2]
[421693870,1778044252000,-150.0,0.00040548,2]
[421693872,1778044252000,-500.0,0.00040548,2]
[421693865,1778044252000,-500.0,0.00040548,2]
[421693868,1778044252000,-500.0,0.00040548,2]
[421693871,1778044252000,-500.0,0.00040548,2]
[421693878,1778044252000,-500.0,0.00040548,2]
[421693867,1778044252000,-500.0,0.00040548,2]
[421693873,1778044252000,-500.0,0.00040548,2]
[421693869,1778044252000,-501.0,0.00040548,2]
[421693876,1778044252000,-500.0,0.00040548,2]
[421693892,1778044252000,-500.0,0.00040548,2]
[421693883,1778044252000,-500.0,0.00040548,2]
[421693884,1778044252000,-500.0,0.00040548,2]
[421693889,1778044252000,-501.0,0.00040548,2]
[421693885,1778044252000,-500.0,0.00040548,2]
[421693888,1778044252000,-500.0,0.00040548,2]
[421693882,1778044252000,-150.0,0.00040548,2]
[421693880,1778044252000,-500.0,0.00040548,2]
[421693890,1778044252000,-500.0,0.00040548,2]
[421693887,1778044252000,-500.0,0.00040548,2]
[421693881,1778044252000,-500.0,0.00040548,2]
[421693886,1778044252000,-500.0,0.00040548,2]
[421693866,1778044252000,-500.0,0.00040548,2]
[421693904,1778044252000,-501.0,0.00040548,2]
[421693879,1778044252000,-500.0,0.00040548,2]
[421693864,1778044252000,-501.0,0.00040548,2]
[421693855,1778044252000,-501.0,0.00040548,2]
[421693863,1778044252000,-500.0,0.00040548,2]
[421693840,1778044252000,-500.0,0.00040548,60]
[421693834,1778044252000,-500.0,0.00040548,60]
[421693842,1778044252000,-500.0,0.00040548,60]
[421693841,1778044252000,-500.0,0.00040548,60]
[421693835,1778044252000,-500.0,0.00040548,60]
[421693837,1778044252000,-500.0,0.00040548,60]
[421693836,1778044252000,-500.0,0.00040548,60]
[421693839,1778044252000,-500.0,0.00040548,60]
[421693843,1778044252000,-500.0,0.00040548,60]
[421693846,1778044252000,-500.0,0.00040548,60]
[421693848,1778044252000,-512.34278439,0.00040548,60]
[421693854,1778044252000,-501.0,0.00040548,2]
[421693849,1778044252000,-150.0,0.00040548,2]
[421693844,1778044252000,-500.0,0.00040548,60]
[421693845,1778044252000,-500.0,0.00040548,60]
[421693902,1778044252000,-500.0,0.00040548,2]
[421693847,1778044252000,-500.0,0.00040548,60]
[421693851,1778044252000,-150.0,0.00040548,2]
[421693850,1778044252000,-150.0,0.00040548,2]
[421693852,1778044252000,-193.94104199,0.00040548,2]
[421693853,1778044252000,-501.0,0.00040548,2]
[421693857,1778044252000,-500.0,0.00040548,2]
[421693856,1778044252000,-501.0,0.00040548,2]
[421693859,1778044252000,-500.0,0.00040548,2]
[421693858,1778044252000,-500.0,0.00040548,2]
[421693862,1778044252000,-500.0,0.00040548,2]
[421693861,1778044252000,-500.0,0.00040548,2]
[421693860,1778044252000,-501.0,0.00040548,2]
[421693891,1778044252000,-500.0,0.00040548,2]
[421693838,1778044252000,-500.0,0.00040548,60]
[421693896,1778044252000,-500.0,0.00040548,2]
[421693926,1778044252000,-501.0,0.00040548,2]
[421693923,1778044252000,-500.0,0.00040548,2]
[421693932,1778044252000,-500.0,0.00040548,2]
[421693939,1778044252000,-635.42871133,0.00040548,2]
[421693934,1778044252000,-501.0,0.00040548,2]
[421693941,1778044252000,-501.0,0.00040548,2]
[421693931,1778044252000,-500.0,0.00040548,2]
[421693942,1778044252000,-501.0,0.00040548,2]
[421693940,1778044252000,-501.0,0.00040548,2]
[421693933,1778044252000,-500.0,0.00040548,2]
[421693936,1778044252000,-500.0,0.00040548,2]
[421693937,1778044252000,-500.0,0.00040548,2]
[421693938,1778044252000,-500.0,0.00040548,2]
[421693924,1778044252000,-500.0,0.00040548,2]
[421693935,1778044252000,-500.0,0.00040548,2]
[421693948,1778044252000,-504.0,0.00040612,16]
[421693945,1778044252000,-505.47706299,0.00040548,2]
[421693946,1778044252000,-554.35,0.00040564,120]
[421693954,1778044252000,-152.0,0.00040763,16]
[421693947,1778044252000,-350.0,0.00040599,2]
[421693944,1778044252000,-501.0,0.00040548,2]
[421693950,1778044252000,-554.35,0.00040664,120]
[421693953,1778044252000,-5276.80668809,0.000407,6]
[421693952,1778044252000,-327.95,0.000407,30]
[421693949,1778044252000,-250.0,0.00040661,80]
[421693951,1778044252000,-156.48951136,0.00040669,120]
[421693956,1778044252000,-85624.50930566,0.000408,64]
[421693894,1778044252000,-501.0,0.00040548,2]
[421693943,1778044252000,-501.0,0.00040548,2]
[421693925,1778044252000,-500.0,0.00040548,2]
[421693955,1778044252000,-554.35,0.00040764,120]
[421693928,1778044252000,-493.40619236,0.00040548,2]
[421693897,1778044252000,-500.0,0.00040548,2]
[421693903,1778044252000,-500.0,0.00040548,2]
[421693893,1778044252000,-500.0,0.00040548,2]
[421693895,1778044252000,-500.0,0.00040548,2]
[421693901,1778044252000,-500.0,0.00040548,2]
[421693899,1778044252000,-501.0,0.00040548,2]
[421693898,1778044252000,-500.0,0.00040548,2]
[421693900,1778044252000,-500.0,0.00040548,2]
[421693929,1778044252000,-500.0,0.00040548,2]
[421693916,1778044252000,-501.0,0.00040548,2]
[421693917,1778044252000,-500.0,0.00040548,2]
[421693907,1778044252000,-500.0,0.00040548,2]
[421693908,1778044252000,-500.0,0.00040548,2]
[421693905,1778044252000,-500.0,0.00040548,2]
[421693906,1778044252000,-500.0,0.00040548,2]
[421693914,1778044252000,-501.0,0.00040548,2]
[421693909,1778044252000,-501.0,0.00040548,2]
[421693920,1778044252000,-500.0,0.00040548,2]
[421693927,1778044252000,-500.0,0.00040548,2]
[421693919,1778044252000,-500.0,0.00040548,2]
[421693918,1778044252000,-501.0,0.00040548,2]
[421693930,1778044252000,-176.81839514,0.00040548,2]
[421693915,1778044252000,-500.0,0.00040548,2]
[421693912,1778044252000,-500.0,0.00040548,2]
[421693913,1778044252000,-500.0,0.00040548,2]
[421693911,1778044252000,-500.0,0.00040548,2]
[421693910,1778044252000,-150.0,0.00040548,2]
[421693921,1778044252000,-501.0,0.00040548,2]
[421693922,1778044252000,-500.0,0.00040548,2]
[421693995,1778044253000,-500.0,0.00041303,91]
[421693997,1778044253000,-5825.59664551,0.00041357,2]
[421693998,1778044253000,-554.35,0.00041364,120]
[421694005,1778044253000,-2500.0,0.000415,120]
[421693996,1778044253000,-250.0,0.00041311,91]
[421693986,1778044253000,-163.0,0.00041204,11]
[421693990,1778044253000,-734.0,0.00041221,2]
[421693985,1778044253000,-153.0,0.000412,120]
[421693988,1778044253000,-150.0,0.00041221,2]
[421693984,1778044253000,-2500.0,0.000412,120]
[421693994,1778044253000,-554.35,0.00041264,120]
[421694001,1778044253000,-150.0,0.00041438,120]
[421694016,1778044253000,-504.0,0.00041648,17]
[421694003,1778044253000,-150.0,0.00041438,120]
[421693999,1778044253000,-2000.0,0.00041403,120]
[421694000,1778044253000,-192.0,0.00041425,90]
[421694004,1778044253000,-554.35,0.00041464,120]
[421694007,1778044253000,-150.0,0.00041558,120]
[421694006,1778044253000,-153.0,0.000415,120]
[421694010,1778044253000,-500.0,0.00041595,78]
[421694008,1778044253000,-554.35,0.00041564,120]
[421694011,1778044253000,-249.31281561,0.00041604,13]
[421694009,1778044253000,-500.0,0.00041584,93]
[421694015,1778044253000,-1560.0,0.00041644,120]
[421694012,1778044253000,-500.0,0.00041605,13]
[421693989,1778044253000,-1056.0,0.00041221,2]
[421694002,1778044253000,-150.0,0.00041438,120]
[421693987,1778044253000,-150.0,0.00041221,2]
[421693975,1778044253000,-250.0,0.00041096,30]
[421693993,1778044253000,-310.0,0.00041233,90]
[421694013,1778044253000,-152.0,0.00041641,17]
[421693964,1778044253000,-1221.0,0.00040971,2]
[421693963,1778044253000,-1268.0,0.00040971,2]
[421693958,1778044253000,-350.0,0.00040809,4]
[421693965,1778044253000,-6043.0,0.00040971,2]
[421693959,1778044253000,-4000.0,0.00040849,60]
[421693961,1778044253000,-161969.0,0.0004095,60]
[421693957,1778044253000,-153.0,0.000408,120]
[421693960,1778044253000,-554.35,0.00040864,120]
[421693962,1778044253000,-554.35,0.00040964,120]
[421693966,1778044253000,-3625.0,0.00040971,2]
[421693969,1778044253000,-520.12089416,0.00041003,21]
[421693968,1778044253000,-500.0,0.00041003,21]
[421693980,1778044253000,-1082.05003167,0.00041096,7]
[421693970,1778044253000,-700.0,0.00041003,21]
[421693967,1778044253000,-162.0,0.00041,120]
[421693971,1778044253000,-1142.1,0.00041041,120]
[421693973,1778044253000,-192.0,0.00041079,90]
[421693976,1778044253000,-379.0,0.00041096,30]
[421693979,1778044253000,-200.0,0.00041096,20]
[421693978,1778044253000,-336.85437484,0.00041096,2]
[421693977,1778044253000,-1560.0,0.00041096,120]
[421693974,1778044253000,-293.0,0.00041096,30]
[421693981,1778044253000,-500.0,0.00041127,17]
[421693991,1778044253000,-921.23621971,0.00041221,60]
[421693982,1778044253000,-200.0,0.00041133,120]
[421693992,1778044253000,-289.47091096,0.00041221,60]
[421693983,1778044253000,-554.35,0.00041164,120]
[421693972,1778044253000,-554.35,0.00041064,120]
[421694014,1778044253000,-1560.0,0.00041644,120]
[421694025,1778044253000,-2859.15288275,0.000418,120]
[421694017,1778044253000,-554.35,0.00041664,120]
[421694050,1778044253000,-150.54233273,0.000419,120]
[421694051,1778044253000,-150.54233273,0.000419,120]